bitfinex-derivatives/quotes_BTCF0:USTF0_20250602
["timestamp","ask_amount","ask_price","bid_price","bid_amount"]
[1748850509416,1.39150093,105440.0,105430.0,0.10952669]
[1748850510121,1.68633436,105440.0,105430.0,0.10952669]
[1748850510324,1.68633436,105440.0,105430.0,0.29202669]
[1748850514232,1.83014093,105440.0,105430.0,0.29202669]
[1748850515931,1.68633436,105440.0,105430.0,0.29202669]
[1748850516231,1.68633436,105440.0,105430.0,0.48052669]
[1748850516232,1.24769436,105440.0,105430.0,0.48052669]
[1748850516431,1.68657436,105440.0,105430.0,0.48526669]
[1748850517732,1.05809376,105440.0,105430.0,0.67488529]
[1748850517943,1.50639446,105440.0,105430.0,0.94405263]
[1748850518343,1.3588007,105440.0,105430.0,0.94405263]
[1748850519632,1.56578871,105440.0,105430.0,0.94405263]
[1748850522145,1.75588871,105440.0,105430.0,0.94405263]
[1748850524844,1.5489007,105440.0,105430.0,0.93293117]
[1748850525349,1.75629629,105440.0,105430.0,0.93293117]
[1748850525547,1.5489007,105440.0,105430.0,0.93293117]
[1748850525945,0.5468,105440.0,105430.0,1.26635634]
[1748850526152,0.98011809,105440.0,105430.0,1.62715634]
[1748850526336,0.62468,105440.0,105430.0,1.62715634]
[1748850526536,0.77282899,105440.0,105430.0,1.62715634]
[1748850526751,0.77258899,105440.0,105430.0,1.62715634]
[1748850526943,0.77278899,105440.0,105430.0,1.62715634]
[1748850527548,0.58698899,105440.0,105430.0,1.62715634]
[1748850528235,0.43872,105440.0,105430.0,1.62715634]
[1748850528547,0.20761004,105440.0,105430.0,1.62715634]
[1748850528742,0.64605004,105440.0,105430.0,1.62715634]
[1748850529847,0.43864,105440.0,105430.0,1.62715634]
[1748850530352,0.58676528,105440.0,105430.0,1.62715634]
[1748850532145,0.58676528,105440.0,105430.0,1.53275111]
[1748850532351,0.77636588,105440.0,105430.0,1.63587111]
[1748850532542,1.33326588,105440.0,105430.0,1.53275111]
[1748850532742,1.33326588,105440.0,105430.0,1.30244594]
[1748850533144,1.14366528,105440.0,105430.0,1.49206454]
[1748850533341,1.33326588,105440.0,105430.0,1.30244594]
[1748850533741,1.47707245,105440.0,105430.0,1.30244594]
[1748850534151,1.47707245,105440.0,105430.0,1.49206454]
[1748850534651,1.33326588,105440.0,105430.0,1.49206454]
[1748850536253,1.14298528,105440.0,105430.0,1.49206454]
[1748850536550,1.33258588,105440.0,105430.0,1.49206454]
[1748850538353,1.33258588,105440.0,105430.0,1.30244594]
[1748850538555,1.33258588,105440.0,105430.0,1.49206464]
[1748850539256,1.14298528,105440.0,105430.0,1.49206464]
[1748850539641,1.14298528,105440.0,105430.0,1.38894464]
[1748850539845,0.33472528,105440.0,105430.0,1.63547121]
[1748850540152,0.15451711,105450.0,105440.0,0.1896006]
[1748850540349,0.15451711,105450.0,105440.0,1.34059311]
[1748850540557,0.44407183,105450.0,105440.0,2.84059311]
[1748850540757,0.00639183,105450.0,105440.0,2.84059311]
[1748850540947,0.44423183,105450.0,105440.0,2.84059311]
[1748850541343,0.44423183,105450.0,105440.0,2.84159311]
[1748850541764,0.63381453,105450.0,105440.0,2.84159311]
[1748850541959,0.81451453,105450.0,105440.0,3.03059311]
[1748850545059,0.81451453,105450.0,105440.0,3.03533311]
[1748850545551,0.81455453,105450.0,105440.0,3.03533311]
[1748850545964,0.62497183,105450.0,105440.0,3.03533311]
[1748850546564,0.81455453,105450.0,105440.0,3.03533311]
[1748850547465,0.62497183,105450.0,105440.0,3.03533311]
[1748850549269,0.82287183,105450.0,105440.0,3.03533311]
[1748850549468,0.82267183,105450.0,105440.0,3.03533311]
[1748850550771,0.62477183,105450.0,105440.0,3.03533311]
[1748850551273,0.62505183,105450.0,105440.0,3.03533311]
[1748850554267,0.81463443,105450.0,105440.0,3.03533311]
[1748850554467,0.81845183,105450.0,105440.0,3.03533311]
[1748850556768,0.81845183,105450.0,105440.0,3.13801311]
[1748850557277,0.81845183,105450.0,105440.0,2.77721311]
[1748850557475,0.81845183,105450.0,105440.0,3.13801311]
[1748850557977,0.81845183,105450.0,105440.0,3.03533311]
[1748850558177,1.20243453,105450.0,105440.0,2.99420654]
[1748850558476,1.01285183,105450.0,105440.0,2.80100654]
[1748850559279,1.01285183,105450.0,105440.0,2.94481311]
[1748850560366,1.20243443,105450.0,105440.0,2.69832654]
[1748850560678,1.20243443,105450.0,105440.0,2.42430654]
[1748850561667,1.35055971,105450.0,105440.0,2.79870654]
[1748850561871,1.35055971,105450.0,105440.0,2.94251311]
[1748850562277,1.20243443,105450.0,105440.0,2.94251311]
[1748850562582,1.01285183,105450.0,105440.0,2.94251311]
[1748850563477,1.16097711,105450.0,105440.0,2.94251311]
[1748850564983,0.72301711,105450.0,105440.0,2.94251311]
[1748850565279,0.52861711,105450.0,105440.0,2.86922717]
[1748850565474,0.33521711,105450.0,105440.0,3.13471311]
[1748850565681,0.62541183,105450.0,105440.0,3.13471311]
[1748850566469,0.18729183,105450.0,105440.0,3.13471311]
[1748850566675,0.77349711,105450.0,105440.0,3.13471311]
[1748850569783,0.33541711,105450.0,105440.0,3.13471311]
[1748850569981,0.77317711,105450.0,105440.0,3.13471311]
[1748850571089,0.33541711,105450.0,105440.0,3.13471311]
[1748850571275,0.77333711,105450.0,105440.0,3.13471311]
[1748850571692,0.62501183,105450.0,105440.0,3.13471311]
[1748850571986,0.77333711,105450.0,105440.0,3.13471311]
[1748850572689,0.62521183,105450.0,105440.0,3.13471311]
[1748850572879,0.77333711,105450.0,105440.0,3.13471311]
[1748850574088,0.96291981,105450.0,105440.0,2.99098654]
[1748850574281,1.34281981,105450.0,105440.0,3.13479311]
[1748850575187,1.34281981,105450.0,105440.0,3.03203311]
[1748850575382,1.34281981,105450.0,105440.0,2.94259311]
[1748850577287,1.15323711,105450.0,105440.0,2.94259311]
[1748850578989,1.15323711,105450.0,105440.0,2.79878654]
[1748850579193,1.15323711,105450.0,105440.0,2.94259311]
[1748850582193,1.15323711,105450.0,105440.0,3.12429311]
[1748850583986,1.15323711,105450.0,105440.0,2.98048654]
[1748850584179,1.15323711,105450.0,105440.0,3.12429311]
[1748850585395,1.34281971,105450.0,105440.0,3.12429311]
[1748850586489,1.34281971,105450.0,105440.0,2.76349311]
[1748850586792,1.34281971,105450.0,105440.0,3.12429311]
[1748850586996,1.15323711,105450.0,105440.0,3.12429311]
[1748850587498,1.34281981,105450.0,105440.0,3.12429311]
[1748850589103,1.15323711,105450.0,105440.0,3.12429311]
[1748850589297,1.15323711,105450.0,105440.0,3.02153311]
[1748850589597,1.15323711,105450.0,105440.0,3.12429311]
[1748850590291,0.77309711,105450.0,105440.0,3.12429311]
[1748850590691,0.95359711,105450.0,105440.0,3.12429311]
[1748850594489,1.14089711,105450.0,105440.0,3.12429311]
[1748850596292,1.33047971,105450.0,105440.0,3.12429311]
[1748850597800,1.14089711,105450.0,105440.0,3.12429311]
[1748850598692,1.14089711,105450.0,105440.0,2.76349311]
[1748850598898,1.14089711,105450.0,105440.0,3.12429311]
[1748850599297,1.14089711,105450.0,105440.0,3.12445908]
[1748850599801,1.14089711,105450.0,105440.0,2.98052654]
[1748850599993,1.14089711,105450.0,105440.0,2.94279908]
[1748850604604,1.14089711,105450.0,105440.0,3.13389908]
[1748850605509,1.47445235,105450.0,105440.0,3.13389908]
[1748850605712,1.33047981,105450.0,105440.0,3.13389908]
[1748850606206,1.14089711,105450.0,105440.0,3.13389908]
[1748850607702,1.33047981,105450.0,105440.0,3.13389908]
[1748850608410,1.14089711,105450.0,105440.0,3.13389908]
[1748850609204,1.14089711,105450.0,105440.0,2.77309908]
[1748850609404,1.14089711,105450.0,105440.0,3.13389908]
[1748850610212,1.14089711,105450.0,105440.0,3.03109908]
[1748850610419,1.33047981,105450.0,105440.0,2.94259908]
[1748850610817,1.14089711,105450.0,105440.0,2.94259908]
[1748850612315,1.28466965,105450.0,105440.0,2.94259908]
[1748850613012,1.47425235,105450.0,105440.0,0.10834]
[1748850613405,1.47425235,105450.0,105440.0,0.2979406]
[1748850613611,1.53353711,105450.0,105440.0,0.2979406]
[1748850613918,1.89433711,105450.0,105440.0,0.2979406]
[1748850614319,1.89433711,105450.0,105440.0,0.44191314]
[1748850615221,1.89477711,105450.0,105440.0,0.62781314]
[1748850615426,1.89481711,105450.0,105440.0,0.81611314]
[1748850615722,1.53401711,105450.0,105440.0,0.81611314]
[1748850616522,1.32660707,105450.0,105440.0,0.81611314]
[1748850618118,1.68740707,105450.0,105440.0,0.81611314]
[1748850618319,1.89481711,105450.0,105440.0,0.81611314]
[1748850618619,1.89481711,105450.0,105440.0,0.48254]
[1748850619136,2.0429287,105450.0,105440.0,0.6721407]
[1748850619325,1.83551866,105450.0,105440.0,0.6721407]
[1748850620517,1.83551866,105450.0,105440.0,0.48254]
[1748850621123,1.83551866,105450.0,105440.0,0.00574]
[1748850621324,1.83551866,105450.0,105440.0,0.10834]
[1748850623622,1.68740707,105450.0,105440.0,0.10834]
[1748850624022,1.83547665,105450.0,105440.0,0.10834]
[1748850627126,1.69150411,105450.0,105440.0,0.10834]
[1748850627326,1.83547665,105450.0,105440.0,0.10834]
[1748850628424,1.68740707,105450.0,105440.0,0.10834]
[1748850628620,1.32660707,105450.0,105440.0,0.10834]
[1748850628823,1.68740707,105450.0,105440.0,0.10834]
[1748850630030,1.68668707,105450.0,105440.0,0.10834]
[1748850633230,2.03806965,105450.0,105440.0,0.10834]
[1748850634222,1.89409711,105450.0,105440.0,0.10834]
[1748850635029,1.68668707,105450.0,105440.0,0.10834]
[1748850636435,1.68668707,105450.0,105440.0,0.00574]
[1748850636629,1.68668707,105450.0,105440.0,1.09909898]
[1748850636630,0.18709183,105450.0,105440.0,1.09909898]
[1748850636834,0.62465183,105450.0,105440.0,1.28909898]
[1748850637134,0.77293817,105450.0,105440.0,1.28909898]
[1748850637332,0.91691071,105450.0,105440.0,1.28909898]
[1748850637528,0.77293817,105450.0,105440.0,1.02361304]
[1748850637733,0.91691071,105450.0,105440.0,1.28909898]
[1748850638331,0.77293817,105450.0,105440.0,1.43307152]
[1748850638638,0.77293817,105450.0,105440.0,1.28909898]
[1748850640139,0.33537817,105450.0,105440.0,1.64989898]
[1748850640338,0.77297817,105450.0,105440.0,1.79387152]
[1748850640538,0.77277817,105450.0,105440.0,1.64989898]
[1748850640738,0.77293817,105450.0,105440.0,1.64989898]
[1748850640938,0.77293817,105450.0,105440.0,1.79387152]
[1748850641841,0.15467817,105450.0,105440.0,1.79387152]
[1748850642031,0.15447817,105450.0,105440.0,1.79387152]
[1748850642239,0.59263817,105450.0,105440.0,1.79387152]
[1748850642442,0.44455183,105450.0,105440.0,3.29387152]
[1748850643840,0.44455183,105450.0,105440.0,3.00592644]
[1748850644147,0.44455183,105450.0,105440.0,3.29387152]
[1748850644845,0.59263817,105450.0,105440.0,3.29387152]
[1748850645242,0.44455183,105450.0,105440.0,3.29387152]
[1748850647738,0.00659183,105450.0,105440.0,3.29387152]
[1748850647939,0.44415183,105450.0,105440.0,3.29387152]
[1748850648448,0.00659183,105450.0,105440.0,3.29387152]
[1748850648647,0.44411183,105450.0,105440.0,3.29387152]
[1748850649745,0.44403183,105450.0,105440.0,3.29387152]
[1748850659160,0.44403183,105450.0,105440.0,2.90332644]
[1748850659355,0.63653183,105450.0,105440.0,3.29387152]
[1748850661262,0.63653183,105450.0,105440.0,3.65467152]
[1748850662368,0.63633183,105450.0,105440.0,3.65467152]
[1748850666666,0.19909183,105450.0,105440.0,3.65467152]
[1748850666865,0.0022,105450.0,105440.0,3.65467152]
[1748850667060,0.37,105460.0,105450.0,0.1895826]
[1748850667261,0.182,105460.0,105450.0,1.66601362]
[1748850667566,0.14808634,105470.0,105460.0,0.1895646]
[1748850667760,0.76732634,105470.0,105460.0,1.76847562]
[1748850667965,0.96172634,105470.0,105460.0,1.76847562]
[1748850668166,0.52428634,105470.0,105460.0,3.26847562]
[1748850668372,0.96172634,105470.0,105460.0,3.26847562]
[1748850668568,0.96152634,105470.0,105460.0,3.26847562]
[1748850668764,0.96172634,105470.0,105460.0,3.26847562]
[1748850669063,0.96372634,105470.0,105460.0,3.12450308]
[1748850669770,0.96372634,105470.0,105460.0,3.27321562]
[1748850670169,0.96372634,105470.0,105460.0,3.27521562]
[1748850670875,0.96172634,105470.0,105460.0,3.27721562]
[1748850671866,0.96172634,105470.0,105460.0,3.13324308]
[1748850672063,1.10569888,105470.0,105460.0,3.03076308]
[1748850672264,1.98801812,105470.0,105460.0,0.00874]
[1748850672568,1.98801812,105470.0,105450.0,0.00014229]
[1748850672569,0.1895646,105460.0,105450.0,0.00014229]
[1748850672870,1.03100968,105460.0,105450.0,0.00014229]
[1748850673072,1.17903227,105460.0,105450.0,0.00014229]
[1748850673279,0.1895826,105450.0,105440.0,0.6528801]
[1748850673464,1.31246992,105450.0,105440.0,0.6528801]
[1748850674071,1.31246992,105450.0,105440.0,0.10248]
[1748850674572,1.31246992,105450.0,105440.0,0.2920806]
[1748850674773,1.67326992,105450.0,105440.0,0.2920806]
[1748850675180,1.67331717,105450.0,105440.0,0.2968206]
[1748850675981,1.48373457,105450.0,105440.0,0.2968206]
[1748850676276,0.90251478,105450.0,105440.0,0.70632633]
[1748850676482,1.51995478,105450.0,105440.0,0.70632633]
[1748850677075,1.70953738,105450.0,105440.0,0.70632633]
[1748850677274,1.70953738,105450.0,105440.0,0.56230654]
[1748850677776,1.15915478,105450.0,105440.0,0.56230654]
[1748850678680,1.15915478,105450.0,105440.0,0.92310654]
[1748850679084,0.72211478,105450.0,105440.0,1.06712633]
[1748850679286,1.16135478,105450.0,105440.0,1.43682633]
[1748850679484,1.01334,105450.0,105440.0,1.43682633]
[1748850679688,1.01314,105450.0,105440.0,1.43682633]
[1748850679890,1.01334,105450.0,105440.0,2.93682633]
[1748850680294,1.01334,105450.0,105440.0,2.93782633]
[1748850680585,1.01334,105450.0,105440.0,2.93882633]
[1748850681190,1.01334,105450.0,105440.0,2.75642633]
[1748850682682,1.01334,105450.0,105440.0,2.61240654]
[1748850682892,1.01334,105450.0,105440.0,2.75642633]
[1748850684093,1.01334,105450.0,105440.0,2.61240654]
[1748850687388,1.01334,105450.0,105440.0,2.81120654]
[1748850690495,1.01334,105450.0,105440.0,2.45040654]
[1748850690696,1.01334,105450.0,105440.0,2.81120654]
[1748850693697,1.01334,105450.0,105440.0,2.99100654]
[1748850694208,1.01246,105450.0,105440.0,3.13502633]
[1748850697493,1.16047478,105450.0,105440.0,3.13502633]
[1748850699698,0.96617478,105450.0,105440.0,3.13502633]
[1748850700298,0.14821478,105450.0,105440.0,3.13502633]
[1748850700502,0.58617478,105450.0,105440.0,3.13502633]
[1748850700797,0.43816,105450.0,105440.0,3.13502633]
[1748850700999,0.43796,105450.0,105440.0,3.13502633]
[1748850701199,0.43816,105450.0,105440.0,3.13502633]
[1748850702100,0.43808,105450.0,105440.0,3.13502633]
[1748850704803,0.43808,105450.0,105440.0,2.77422633]
[1748850705009,0.43808,105450.0,105440.0,3.49582633]
[1748850707203,0.63378,105450.0,105440.0,3.49582633]
[1748850709218,0.1959,105450.0,105440.0,3.49582633]
[1748850710512,0.0002,105450.0,105440.0,3.49582633]
[1748850710704,0.18424229,105460.0,105450.0,0.1895826]
[1748850711016,0.00014229,105460.0,105450.0,1.66120812]
[1748850711308,0.00034229,105460.0,105450.0,1.66120812]
[1748850711517,0.00034229,105460.0,105450.0,3.16120812]
[1748850712806,0.00034229,105460.0,105450.0,3.16594812]
[1748850713005,0.00034229,105460.0,105450.0,3.02192833]
[1748850713211,0.18444229,105460.0,105450.0,3.02192833]
[1748850713607,0.18444229,105460.0,105450.0,3.02792833]
[1748850715113,0.18444229,105460.0,105450.0,3.17194812]
[1748850716818,0.18444229,105460.0,105450.0,3.02792833]
[1748850719913,0.37724229,105460.0,105450.0,3.02792833]
[1748850722022,0.37724229,105460.0,105450.0,3.38872833]
[1748850724926,0.56724229,105460.0,105450.0,3.38872833]
[1748850725615,0.56724229,105460.0,105450.0,3.24470854]
[1748850725814,0.56724229,105460.0,105450.0,3.49124833]
[1748850726629,0.56724229,105460.0,105450.0,3.30504833]
[1748850728126,0.56724229,105460.0,105450.0,1.80304833]
[1748850728527,0.56724229,105460.0,105450.0,3.30304833]
[1748850729028,0.56724229,105460.0,105450.0,3.30104833]
[1748850729229,0.56724229,105460.0,105450.0,3.44506812]
[1748850730327,0.56724229,105460.0,105450.0,3.30104833]
[1748850735630,0.56724229,105460.0,105450.0,3.15702854]
[1748850735832,0.56724229,105460.0,105450.0,3.30104833]
[1748850737128,0.56724229,105460.0,105450.0,2.57944833]
[1748850737329,0.56724229,105460.0,105450.0,3.15702854]
[1748850737626,0.56724229,105460.0,105450.0,3.30104833]
[1748850737934,0.56724229,105460.0,105450.0,2.57944833]
[1748850738132,0.56724229,105460.0,105450.0,3.30104833]
[1748850738525,1.00448229,105460.0,105450.0,3.49734833]
[1748850739324,1.00448229,105460.0,105450.0,3.4972596]
[1748850739528,0.62148229,105460.0,105450.0,3.4972596]
[1748850739932,0.62168229,105460.0,105450.0,3.4972596]
[1748850741331,0.62168229,105460.0,105450.0,3.64116626]
[1748850741531,0.18444229,105460.0,105450.0,3.64116626]
[1748850743633,0.18444229,105460.0,105450.0,3.4972474]
[1748850744034,0.36804229,105460.0,105450.0,3.4972474]
[1748850744628,0.36804229,105460.0,105450.0,3.35332854]
[1748850744828,0.36804229,105460.0,105450.0,3.4972474]
[1748850744829,0.51605707,105460.0,105450.0,3.4972474]
[1748850745034,0.69845707,105460.0,105450.0,3.3009474]
[1748850745335,0.69845707,105460.0,105450.0,3.15702854]
[1748850746329,0.69845707,105460.0,105450.0,3.3009474]
[1748850747627,0.69845707,105460.0,105450.0,2.66436146]
[1748850747830,0.69845707,105460.0,105450.0,2.9298474]
[1748850748233,0.69845707,105460.0,105450.0,3.3217474]
[1748850749444,1.03194033,105460.0,105450.0,1.0204426]
[1748850751040,1.03194033,105460.0,105450.0,1.0194426]
[1748850751245,1.03194033,105460.0,105450.0,1.0184426]
[1748850751947,1.03194033,105460.0,105450.0,0.2968426]
[1748850752149,1.03194033,105460.0,105450.0,0.6576424]
[1748850752449,1.03194033,105460.0,105450.0,0.36554]
[1748850752653,1.03194033,105460.0,105450.0,0.46806]
[1748850752955,0.88392555,105460.0,105450.0,0.46806]
[1748850753156,0.88392555,105460.0,105450.0,0.36554]
[1748850753348,1.12677731,105460.0,105450.0,0.00474]
[1748850753548,0.97875355,105460.0,105450.0,0.10726]
[1748850753745,1.34055355,105460.0,105450.0,0.10726]
[1748850753955,1.54996359,105460.0,105450.0,0.10726]
[1748850754760,1.45513559,105460.0,105450.0,0.10726]
[1748850758056,1.39560925,105460.0,105450.0,0.10726]
[1748850759160,1.03480925,105460.0,105450.0,0.10726]
[1748850759365,1.39560925,105460.0,105450.0,0.10726]
[1748850763056,1.25169039,105460.0,105450.0,0.2968424]
[1748850763257,1.68897039,105460.0,105450.0,0.2968424]
[1748850763462,1.25169039,105460.0,105450.0,0.62986126]
[1748850763666,1.68897039,105460.0,105450.0,0.6853424]
[1748850764365,1.25069039,105460.0,105450.0,0.82926126]
[1748850764566,1.68793039,105460.0,105450.0,0.82926126]
[1748850764769,1.68813039,105460.0,105450.0,0.6853424]
[1748850765455,1.68613039,105460.0,105450.0,0.6853424]
[1748850765660,1.68613039,105460.0,105450.0,0.8713424]
[1748850765863,1.68609039,105460.0,105450.0,0.8713424]
[1748850766266,1.32529039,105460.0,105450.0,0.8713424]
[1748850767974,1.32529039,105460.0,105450.0,1.2321424]
[1748850768164,1.13572599,105460.0,105450.0,1.2321424]
[1748850768470,1.32529039,105460.0,105450.0,1.2321424]
[1748850770773,1.32529039,105460.0,105450.0,1.49762834]
[1748850770973,1.68609039,105460.0,105450.0,1.13682834]
[1748850772470,1.68609039,105460.0,105450.0,1.2807472]
[1748850773676,1.68609039,105460.0,105450.0,1.13682834]
[1748850775180,1.53820669,105460.0,105450.0,1.13682834]
[1748850775377,1.17740669,105460.0,105450.0,1.13682834]
[1748850776469,1.17740669,105460.0,105450.0,1.49762834]
[1748850779678,1.38481673,105460.0,105450.0,1.49762834]
[1748850780681,1.17740669,105460.0,105450.0,1.49762834]
[1748850781277,1.38481673,105460.0,105450.0,1.49762834]
[1748850781682,1.38481673,105460.0,105450.0,1.13682834]
[1748850782173,1.52873559,105460.0,105450.0,1.13682834]
[1748850782373,1.88953559,105460.0,105450.0,1.13682834]
[1748850782675,1.74561673,105460.0,105450.0,1.13682834]
[1748850783183,1.38481673,105460.0,105450.0,1.13682834]
[1748850783383,1.53294475,105460.0,105450.0,1.49762834]
[1748850783569,1.32553471,105460.0,105450.0,1.49762834]
[1748850784686,0.51617031,105460.0,105450.0,1.6415472]
[1748850784878,0.76985031,105460.0,105450.0,1.6415472]
[1748850785183,0.62172229,105460.0,105450.0,1.6415472]
[1748850785579,0.62152229,105460.0,105450.0,1.6415472]
[1748850785884,0.33257031,105460.0,105450.0,3.1415472]
[1748850786080,0.76985031,105460.0,105450.0,3.1435472]
[1748850787782,0.96025031,105460.0,105450.0,3.1435472]
[1748850788173,1.14355031,105460.0,105450.0,3.1435472]
[1748850789788,0.96025031,105460.0,105450.0,3.1435472]
[1748850790885,0.33257031,105460.0,105450.0,3.1435472]
[1748850791078,0.62172229,105460.0,105450.0,3.1435472]
[1748850792780,0.76985031,105460.0,105450.0,3.1435472]
[1748850793679,0.95895031,105460.0,105450.0,3.1435472]
[1748850794382,0.81082229,105460.0,105450.0,3.1435472]
[1748850797591,0.81082229,105460.0,105450.0,2.87806126]
[1748850797785,1.00052229,105460.0,105450.0,3.1435472]
[1748850798287,1.14865031,105460.0,105450.0,3.1435472]
[1748850799497,1.14865031,105460.0,105450.0,1.6435472]
[1748850800087,1.14865031,105460.0,105450.0,3.1435472]
[1748850803284,1.14865031,105460.0,105450.0,3.14356944]
[1748850803688,1.14865031,105460.0,105450.0,2.8780835]
[1748850803885,1.14865031,105460.0,105450.0,3.14356944]
[1748850804889,1.14865031,105460.0,105450.0,2.78276944]
[1748850805091,1.14865031,105460.0,105450.0,3.14356944]
[1748850806689,1.14861031,105460.0,105450.0,1.64356944]
[1748850808606,1.14861031,105460.0,105450.0,1.49962834]
[1748850808796,1.14861031,105460.0,105450.0,1.64356944]
[1748850810395,1.14861031,105460.0,105450.0,1.49962834]
[1748850810604,1.14861031,105460.0,105450.0,1.64356944]
[1748850816319,0.71137031,105460.0,105450.0,1.64356944]
[1748850816619,1.14857031,105460.0,105450.0,1.64356944]
[1748850816802,0.95887031,105460.0,105450.0,1.64356944]
[1748850822408,0.95867031,105460.0,105450.0,1.64356944]
[1748850822813,0.52147031,105460.0,105450.0,1.64356944]
[1748850823018,0.95867031,105460.0,105450.0,1.64356944]
[1748850840727,0.33237031,105460.0,105450.0,1.78751054]
[1748850841029,0.76969031,105460.0,105450.0,2.14831054]
[1748850841221,0.62156229,105460.0,105450.0,2.14831054]
[1748850842522,0.62156229,105460.0,105450.0,2.00436944]
[1748850842929,0.62156229,105460.0,105450.0,3.50436944]
[1748850844529,0.62156229,105460.0,105450.0,3.50432944]
[1748850844833,0.62156229,105460.0,105450.0,3.40184944]
[1748850845024,0.62156229,105460.0,105450.0,3.50432944]
[1748850845425,0.80976229,105460.0,105450.0,3.50432944]
[1748850852943,0.80968229,105460.0,105450.0,3.50432944]
[1748850854344,0.80968229,105460.0,105450.0,2.78272944]
[1748850854544,0.80968229,105460.0,105450.0,3.50432944]
[1748850861551,0.62148229,105460.0,105450.0,3.50432944]
[1748850862853,0.62148229,105460.0,105450.0,3.14352944]
[1748850866644,0.82038229,105460.0,105450.0,3.14352944]
[1748850867444,1.00368229,105460.0,105450.0,3.14352944]
[1748850869759,1.00368229,105460.0,105450.0,2.99958834]
[1748850869948,1.00368229,105460.0,105450.0,3.14352944]
[1748850871857,1.19324659,105460.0,105450.0,2.95752944]
[1748850872059,1.00368229,105460.0,105450.0,1.45752944]
[1748850872557,1.00368229,105460.0,105450.0,2.95752944]
[1748850873146,1.00368229,105460.0,105450.0,3.00481601]
[1748850873460,1.00368229,105460.0,105450.0,2.95752944]
[1748850874554,1.33718769,105460.0,105450.0,2.5895635]
[1748850874755,1.33718769,105460.0,105450.0,0.7010635]
[1748850875062,1.48531571,105460.0,105450.0,0.4427035]
[1748850875260,1.48531571,105460.0,105450.0,1.9427035]
[1748850875865,1.48531571,105460.0,105450.0,0.4427035]
[1748850876465,1.48531571,105460.0,105450.0,0.4417035]
[1748850877567,1.48511571,105460.0,105450.0,0.4417035]
[1748850878265,1.48511571,105460.0,105450.0,0.4407035]
[1748850879853,1.15161031,105460.0,105450.0,0.4407035]
[1748850880165,1.34117451,105460.0,105450.0,0.4407035]
[1748850880361,1.34117451,105460.0,105450.0,0.4406235]
[1748850884367,1.48511561,105460.0,105450.0,0.4406235]
[1748850887965,1.34117451,105460.0,105450.0,0.4406235]
[1748850888161,1.34117451,105460.0,105450.0,0.6366235]
[1748850889770,1.34117451,105460.0,105450.0,0.90210944]
[1748850890965,1.48511561,105460.0,105450.0,0.90210944]
[1748850891563,1.33698759,105460.0,105450.0,0.90210944]
[1748850891762,1.48511561,105460.0,105450.0,0.90210944]
[1748850893970,1.48511561,105460.0,105450.0,0.56216834]
[1748850894170,1.48511561,105460.0,105450.0,0.70610944]
[1748850896071,1.48511561,105460.0,105450.0,0.56216834]
[1748850896272,1.48511561,105460.0,105450.0,0.70610944]
[1748850899777,1.48511561,105460.0,105450.0,0.56216834]
[1748850899971,1.48511561,105460.0,105450.0,0.70610944]
[1748850901580,1.48511561,105460.0,105450.0,0.88810944]
[1748850902078,1.98985671,105460.0,105450.0,0.1071]
[1748850902282,0.1895821,105450.0,105440.0,0.10236]
[1748850902465,1.4115601,105450.0,105440.0,0.10236]
[1748850903073,1.42106088,105450.0,105440.0,0.10236]
[1748850904073,1.41686508,105450.0,105440.0,0.1071]
[1748850904574,1.48033402,105450.0,105440.0,0.1071]
[1748850904774,1.62427512,105450.0,105440.0,0.1071]
[1748850904973,1.71911112,105450.0,105440.0,0.1071]
[1748850905278,1.71911112,105450.0,105440.0,0.00474]
[1748850905279,1.51170108,105450.0,105440.0,0.00474]
[1748850905466,1.56170108,105450.0,105440.0,0.00474]
[1748850905671,1.76911112,105450.0,105440.0,0.00474]
[1748850905876,2.12991112,105450.0,105440.0,0.00474]
[1748850906272,2.22991112,105450.0,105440.0,0.00474]
[1748850906467,2.12991112,105450.0,105440.0,0.00474]
[1748850908375,0.1896,105440.0,105430.0,0.00222898]
[1748850908573,0.1896,105440.0,105410.0,0.68270553]
[1748850908574,0.189636,105420.0,105410.0,0.1024]
[1748850908775,1.2752382,105420.0,105410.0,0.1024]
[1748850908973,1.97808111,105420.0,105410.0,0.1024]
[1748850909377,1.8302382,105420.0,105410.0,0.1024]
[1748850909576,2.1910382,105420.0,105410.0,0.1024]
[1748850909777,2.33884194,105420.0,105410.0,0.1024]
[1748850910282,2.34084194,105420.0,105410.0,0.1024]
[1748850910783,2.34084194,105420.0,105410.0,0.10714]
[1748850910984,2.34184194,105420.0,105410.0,0.10714]
[1748850911185,2.3421537,105420.0,105410.0,0.10714]
[1748850913075,2.19809672,105420.0,105410.0,0.10714]
[1748850914186,2.24633855,105420.0,105410.0,0.10714]
[1748850914785,2.09853481,105420.0,105410.0,0.00474]
[1748850915685,2.24263179,105420.0,105410.0,0.00474]
[1748850916274,2.09853481,105420.0,105410.0,0.00474]
[1748850917481,2.09857481,105420.0,105410.0,0.00474]
[1748850920289,1.66157481,105420.0,105410.0,0.00474]
[1748850920487,1.51747783,105420.0,105410.0,0.1943939]
[1748850920685,2.09877481,105420.0,105410.0,0.58314]
[1748850920990,2.09877481,105420.0,105410.0,0.7727939]
[1748850921187,2.09857481,105420.0,105410.0,0.7727939]
[1748850921491,2.09877481,105420.0,105410.0,0.58314]
[1748850921689,2.09677481,105420.0,105410.0,0.58314]
[1748850922392,1.03914183,105420.0,105410.0,1.03827984]
[1748850922583,1.22857773,105420.0,105410.0,1.03827984]
[1748850922784,1.22877773,105420.0,105410.0,1.03827984]
[1748850923293,1.22777773,105420.0,105410.0,1.03827984]
[1748850923692,1.37187471,105420.0,105410.0,1.03827984]
[1748850924486,1.37187471,105420.0,105410.0,0.84862594]
[1748850925295,1.56547471,105420.0,105410.0,0.84862594]
[1748850926095,1.56547471,105420.0,105410.0,1.03827974]
[1748850926804,1.56547471,105420.0,105410.0,0.84862594]
[1748850928603,1.71327845,105420.0,105410.0,0.84862594]
[1748850933308,1.71323709,105420.0,105410.0,0.84862594]
[1748850936306,0.72183699,105420.0,105410.0,1.18233536]
[1748850936507,0.19604557,105420.0,105410.0,1.54313536]
[1748850936708,0.48520183,105420.0,105410.0,1.54313536]
[1748850936897,0.48540183,105420.0,105410.0,1.54313536]
[1748850937104,0.48520183,105420.0,105410.0,1.54313536]
[1748850937312,0.48540183,105420.0,105410.0,1.54313536]
[1748850938007,0.48540183,105420.0,105410.0,1.54513536]
[1748850939406,0.48540183,105420.0,105410.0,1.5451128]
[1748850940403,0.67503753,105420.0,105410.0,1.5451128]
[1748850941409,0.67503753,105420.0,105410.0,1.1843128]
[1748850941906,0.86893753,105420.0,105410.0,1.1843128]
[1748850942908,0.86893753,105420.0,105410.0,1.04027974]
[1748850943115,0.86893753,105420.0,105410.0,1.40107974]
[1748850947513,0.86893753,105420.0,105410.0,1.04027974]
[1748850948115,1.01674127,105420.0,105410.0,1.04027974]
[1748850949514,1.21444127,105420.0,105410.0,1.04027974]
[1748850950113,1.40344127,105420.0,105410.0,1.04027974]
[1748850951114,1.40344127,105420.0,105410.0,1.40107974]